Cogmind - Beta 10.2 --- EXPLORER MODE // 2021.07.12 @ 18:36:23 // AFD2020/Player2 Player: Quiddy Result: Destroyed by as-30718 with Assembled Heavy Rifle Performance ------------- Evolutions (0) 0 Regions Visited (2) 400 Robots Destroyed (4) 20 Value Destroyed (83) 83 Prototype IDs (0) 0 Alien Tech Used (0) 0 Bonus (4) 4 TOTAL SCORE: 507 Bonus ------- Follower Combat Kills 67 Friendly Fire -63 Cogmind --------- Core Integrity 0/250 Matter 230/300 Energy 163/250 System Corruption 0% Temperature Cool (0) Movement Treading (160) Location -10/Mines Parts ------- > --- POWER (1) -------- Ion Engine > --- PROPULSION (2) --- Light Treads Light Treads > --- UTILITY (3) ------ Large Storage Unit Targeting Computer Core Shielding > --- WEAPON (2) ------- Assault Rifle > --- INVENTORY (10) --- Targeting Computer Light Armor Plating Peak State ------------ > --- POWER ------------ Light Ion Engine > --- PROPULSION ------- Aluminum Leg Aluminum Leg > --- UTILITY ---------- Medium Storage Unit Large Storage Unit Core Shielding > --- WEAPON ----------- Small Laser Assault Rifle > --- INVENTORY -------- Ion Engine Light Treads Light Treads Targeting Computer Targeting Computer Light Armor Plating Assault Rifle [Rating: 8] Favorites ----------- Power Light Ion Engine Engine Light Ion Engine Propulsion Aluminum Leg Treads Light Treads Leg Aluminum Leg Utility Core Shielding Storage Large Storage Unit Processor Targeting Computer Protection Core Shielding Weapon Assault Rifle Energy Gun Small Laser Ballistic Gun Assault Rifle Build | -11 -10 -10 ------- Run | Scr Mat Min Slots Evolved 1 | . 1 . Power . | . . . Propulsion . | . . . Utility 1 | . 1 . Weapon . | . . . Parts Attached 6 | . 1 5 Power 1 | . . 1 Engine 1 | . . 1 Core . | . . . Reactor . | . . . Propulsion 2 | . . 2 Treads 2 | . . 2 Leg . | . . . Wheel . | . . . Hover . | . . . Flight . | . . . Utility 2 | . 1 1 Device . | . . . Storage 1 | . 1 . Processor 1 | . . 1 Hackware . | . . . Protection . | . . . Artifact . | . . . Weapon 1 | . . 1 Energy Gun . | . . . Energy Cannon . | . . . Ballistic Gun 1 | . . 1 Ballistic Cannon . | . . . Launcher . | . . . Special Weapon . | . . . Impact Weapon . | . . . Slashing Weapon . | . . . Piercing Weapon . | . . . Special Melee Weapon . | . . . Unidentified Prototypes . | . . . Parts Lost 5 | . . 5 Power 1 | . . 1 Propulsion 2 | . . 2 Utility . | . . . Weapon 2 | . . 2 Highest Loss Streak 5 | . . 5 Average Slot Usage (%) 86 | . 87 85 Engine 11 | . 12 11 Leg 24 | . 25 22 Storage 12 | . 12 12 Protection 12 | . 12 12 Energy Gun 11 | . 12 10 Ballistic Gun 12 | . 12 12 Naked Turns . | . . . Heaviest Build 23 | 15 23 23 Greatest Support 20 | 20 20 20 Greatest Overweight (x) 1 | . 1 1 Average Overweight (x) . | . . 1 Largest Inventory Capacity 14 | . 14 10 Average Capacity 9 | . 9 10 Most Carried 8 | . 8 7 Average Carried 6 | . 7 6 Final Capacity 10 | 8 10 10 Final Carried 7 | 7 7 2 Class Distribution -------------------- 100% | Hacker-Mutant Dominant Class ---------------- Hacker-Mutant | -10/Materials Hacker-Mutant | -10/Mines Resources | -11 -10 -10 ----------- Run | Scr Mat Min Matter Collected 228 | 200 10 18 Remotely . | . . . Salvage Created 110 | . 29 81 Parts 5 | . 2 3 Haulers Intercepted . | . . . Recyclers Shooed . | . . . Parts Field Recycled . | . . . Retrieved Matter . | . . . Parts Self-Destructed . | . . . Prevented . | . . . Kills | -11 -10 -10 ------- Run | Scr Mat Min Combat Hostiles Destroyed 5 | . 2 3 Guns 5 | . 2 3 Classes Destroyed 3 | . 1 2 Swarmer 3 | . 2 1 Demolisher 1 | . . 1 Assembled 1 | . . 1 Best Kill Streak 2 | . 2 1 Combat Bots Only 2 | . 2 1 Max Kills in Single Turn 1 | . 1 1 Gunslinging . | . . . Exploded . | . . . Melee . | . . . Uniques/NPCs Destroyed . | . . . Combat | -11 -10 -10 -------- Run | Scr Mat Min Damage Taken 1042 | . 41 1001 Core 224 | . 16 208 Absorbed by Shields . | . . . Core Remaining (%) 100 | 100 . . Volleys Fired 21 | . 4 17 Largest 2 | . 2 2 Hottest 60 | . 60 60 Shots Fired 30 | . 8 22 Gun 30 | . 8 22 Cannon . | . . . Launcher . | . . . Special . | . . . Kinetic 21 | . 4 17 Thermal 9 | . 4 5 Explosive . | . . . Electromagnetic . | . . . Robot Hit Streak 17 | . 1 17 Robot Miss Streak 3 | . 3 1 Penetration Max . | . . . Secondary Targets 1 | . . 1 Max Gunslinging Chain 1 | . . 1 Shots Hit Robots 22 | . 3 19 Core Hits 10 | . 2 8 Critical Hits . | . . . Critical Kills . | . . . Critical Parts Destroyed . | . . . Melee Attacks . | . . . Impact . | . . . Slashing . | . . . Piercing . | . . . Sneak Attacks . | . . . Combat Hostiles . | . . . Follow-up Attacks . | . . . Damage Inflicted 279 | . 48 231 Guns 279 | . 48 231 Cannons . | . . . Explosions . | . . . Melee . | . . . Ramming . | . . . Kinetic 203 | . 14 189 Thermal 76 | . 34 42 Explosive . | . . . Electromagnetic . | . . . Impact . | . . . Slashing . | . . . Piercing . | . . . Highest Corruption . | . . . Average Corruption . | . . . Corruption Purged . | . . . Overload Shots . | . . . Overflow Damage . | . . . Projectiles . | . . . Explosions . | . . . Melee . | . . . Knockbacks . | . . . Impact . | . . . Kinetic . | . . . Secondary . | . . . Self-Inflicted Damage . | . . . Shots . | . . . Rammed . | . . . Targets Rammed . | . . . Kicked . | . . . Crushed . | . . . Highest Temperature . | . . . Average Temperature . | . . . Received Heat Transfer . | . . . Siege Activations . | . . . Robots Corrupted . | . . . Combat Hostiles . | . . . Parts Fried . | . . . Impact Corruptions . | . . . Robots Melted . | . . . Combat Hostiles . | . . . Parts Melted . | . . . Heat Transferred 156 | . 75 81 Parts Sabotaged . | . . . Parts Stolen . | . . . Parts Stripped . | . . . Power Chain Reactions . | . . . Missiles Intercepted . | . . . Alert | -11 -10 -10 ------- Run | Scr Mat Min Peak Influence 86 | . 61 86 Initial . | . . . Average 18 | . 11 35 Maximum Alert Level . | . . . Low Security (%) 100 | . 100 100 Level 1 . | . . . Level 2 . | . . . Level 3 . | . . . Level 4 . | . . . Level 5 . | . . . High Security . | . . . Max Security . | . . . Squads Dispatched . | . . . Investigation . | . . . Extermination . | . . . Reinforcement . | . . . Assault . | . . . Garrison . | . . . Intercept . | . . . Construction Impeded . | . . . Haulers Reinforced . | . . . Stealth | -11 -10 -10 --------- Run | Scr Mat Min Distress Signals . | . . . Communications Jammed . | . . . Distress Signals . | . . . Times Spotted 15 | . 3 12 Peak Tracking Total 12 | . 2 12 Tactical Retreats . | . . . Traps | -11 -10 -10 ------- Run | Scr Mat Min Traps Triggered 1 | . 1 . Indirectly . | . . . Trap Hack Attempts . | . . . Triggered . | . . . Disarmed . | . . . Reprogrammed . | . . . Reused . | . . . Traps Extracted . | . . . Installed . | . . . Triggered . | . . . Machines | -11 -10 -10 ---------- Run | Scr Mat Min Machines Disabled . | . . . Max in Single Turn . | . . . Machines Sabotaged . | . . . Garrisons Compromised . | . . . Overloaded Fab Kills . | . . . Fab Network Shutdowns . | . . . Hacking | -11 -10 -10 --------- Run | Scr Mat Min Machines Accessed 2 | . 2 . Terminals 1 | . 1 . Fabricators . | . . . Repair Stations . | . . . Recycling Units 1 | . 1 . Scanalyzers . | . . . Garrison Access . | . . . Total Hacks 6 | . 6 . Successful 6 | . 6 . Failed . | . . . Catastrophic . | . . . Database Lockouts . | . . . Manual . | . . . Terminals 3 | . 3 . Fabricators . | . . . Repair Stations . | . . . Recycling Units 3 | . 3 . Scanalyzers . | . . . Garrison Access . | . . . Terminal Hacks 3 | . 3 . Machine Index 1 | . 1 . Reinforcement Status 1 | . 1 . Zone Layout 1 | . 1 . Fabricator Hacks . | . . . Repair Station Hacks . | . . . Recycling Unit Hacks 3 | . 3 . Report Inventory 1 | . 1 . Retrieve Components 2 | . 2 . Scanalyzer . | . . . Garrison Access Hacks . | . . . Unauthorized Hacks . | . . . Terminals . | . . . Fabricators . | . . . Repair Stations . | . . . Recycling Units . | . . . Scanalyzers . | . . . Garrison Access . | . . . Data Cores Recovered . | . . . Used . | . . . Hacking Detections 2 | . 2 . Full Trace Events 1 | . 1 . Feedback Events . | . . . Feedback Blocked . | . . . Robot Schematics Acquired . | . . . Robots Built . | . . . Matter . | . . . Time . | . . . Total Robot Build Rating . | . . . Part Schematics Acquired . | . . . Parts Built . | . . . Matter . | . . . Time . | . . . Total Part Build Rating . | . . . Parts Repaired . | . . . Time . | . . . Parts Recycled . | . . . Recycled Matter . | . . . Retrieved Matter . | . . . Retrieved Components . | . . . Parts Scanalyzed . | . . . Part Schematics Acquired . | . . . Parts Damaged . | . . . Bothacking | -11 -10 -10 ------------ Run | Scr Mat Min Used RIF Installer . | . . . Robots Hacked . | . . . Non-combat . | . . . Combat . | . . . Robot Hacks Applied . | . . . Relay Couplers Released . | . . . Robots Rewired . | . . . Allies Hacked . | . . . Hacks Repelled . | . . . Allies | -11 -10 -10 -------- Run | Scr Mat Min Total Allies 1 | . 1 . Largest Group 1 | . 1 1 Highest-Rated Group 57 | . 56 57 Highest-Rated Ally 57 | . 56 57 Total Orders . | . . . Ally Attacks 24 | . 1 23 Total Damage 178 | . . 178 Kills 3 | . . 3 Allies Corrupted . | . . . Allies Melted . | . . . Intel | -11 -10 -10 ------- Run | Scr Mat Min Robot Analysis Total . | . . . Derelict Logs Recovered . | . . . Drone Launches . | . . . Drone Recoveries . | . . . Exploration | -11 -10 -10 ------------- Run | Scr Mat Min Turns Passed 680 | . 497 183 Spaces Moved 317 | 1 249 67 Core . | . . . Treads . | . . . Legs 317 | 1 249 67 Wheels . | . . . Hover . | . . . Flight . | . . . Fastest Speed 120 | 120 120 150 Average Speed 148 | 120 147 150 Slowest Speed 150 | 120 150 150 Overloaded Moves . | . . . Propulsion Burnouts . | . . . Robots Hopped . | . . . Cave-ins Triggered . | . . . Exploration Rate (%) 20 | 2 38 20 Regions Visited 2 Branch Regions 1 Pre-discovered Areas . | . . . Known Exits Taken 2 | 1 1 . Unknown Exits Taken . | . . . Scrap Searched . | . . . Spaces Dug . | . . . Terrain Destroyed . | . . . Melee . | . . . Projectile . | . . . AOE . | . . . Terrain Rammed . | . . . Walls Destroyed . | . . . Machines Disabled . | . . . Actions | -11 -10 -10 --------- Run | Scr Mat Min Total 500 | . 371 129 Wait 155 | . 115 40 Move 315 | . 248 67 Hop . | . . . Pick Up 1 | . 1 . Fast Attach 1 | . 1 . Attach 5 | . . 5 Detach . | . . . Swap . | . . . Drop 2 | . 2 . Fire 21 | . 4 17 Melee . | . . . Ram . | . . . Kick . | . . . Crush . | . . . Escape Stasis . | . . . Rewire . | . . . Trap . | . . . Miscellaneous . | . . . Route ------- -11/Scrapyard -10/Materials -10/Mines (discovered 1 exit: *Mat) History --------- Turn | Location | Event 1 | -11/Scrapyard | Identified exit to Materials 1 | -11/Scrapyard | Discovered exit to Materials (range 0) 1 | -11/Scrapyard | Entered Materials 1 | -10/Materials | Evolved 1 slot: Utility x1 314 | -10/Materials | Build established: Hacker-Mutant 447 | -10/Materials | Identified exit to Mines 447 | -10/Materials | Discovered exit to Mines (range 7) 498 | -10/Materials | Entered Mines 498 | -10/Mines | Accompanied by 1 ally 560 | -10/Mines | Identified exit to Materials 560 | -10/Mines | Discovered exit to Materials (range 7) 637 | -10/Mines | Assembled infested the area 642 | -10/Mines | Assisted by a Guerilla fighting off Assembled 666 | -10/Mines | Core integrity fell below 50% 672 | -10/Mines | Core integrity fell below 20% 681 | -10/Mines | Destroyed by as-30718 with Assembled Heavy Rifle Last Messages --------------- as-51504 destroyed. Aluminum Leg destroyed. The unstable cave ceiling collapses. U-05 Engineer destroyed. K-01 Serf collects debris. The unstable cave ceiling collapses. Assault Rifle destroyed. The unstable cave ceiling collapses. as-33633 destroyed. The unstable cave ceiling collapses. K-01 Serf collects debris. The unstable cave ceiling collapses. as-33573 destroyed. K-01 Serf collects debris. The unstable cave ceiling collapses. D-53 Grenadier destroyed. K-01 Serf collects debris. The unstable cave ceiling collapses. R-06 Scavenger collects Imp. Light Armor Plating. The unstable cave ceiling collapses. Map ----- +----------------------------------------------------+ | ?????????????????????????????????????????????????? | | ?????????????????????????????????????????????????? | | ?????????????????????????????????????????????????? | | ?????????????????????????????????????????????????? | | ?????????????????????????????????????????????????? | | ?????????????????????????????????????????????????? | | ?????????????????????????????????????????????????? | | ?????????????????????????????????????????????????? | | ?????????????????????????????????????????????????? | | ?????????????????????????????????????????????????? | | ?????????????????????????????????????????????????? | | ?????????????????????? ?????????????????????????? | | ?????????????????????? ?????????????????????????? | | ?????????????????????? ?????????????????????????? | | ?????????????????????? ?????????????????????????? | | ???????????????????????a?????????????????????????? | | ??????????????????????? ###??????????????????????? | | ??????????????????????? #??????????????????????? | | ??????????????????????? a#??????????????????????? | | ??????????????????????##a #??????????????????????? | | ??????????????????????#; ###????????????????????? | | ?????????????????????## ##???????????????????? | | ????????????????????## ##??????????????????? | | ????????????????????# #??????????????????? | | ????????????????????# #??????????????????? | | ????????????????????# @ #??????????????????? | | ????????????????????# #??????????????????? | | ????????????????????# #??????????????????? | | ????????????????????## ##??????????????????? | | ?????????????????????## *d ##???????????????????? | | ??????????????????????##u ###????????????????????? | | ???????????????????????#@k#####??????????????????? | | ?????????????????????###r # #####????????????? | | ????????????????????## ?????????? | | ????????????????????# ????????? | | ???????????########## ### ######## ?????????? | | ???????????# ### ##?? #??????????????????? | | ???????????# #?# ##???? #??????????????????? | | ???????????# #?# #????? #??????????????????? | | ########### < ### ##?????#??????????????????? | | #????????????????????????? | | ########## # #### #????????????????????????? | | ##???????# # #??? #????????????????????????? | | ##???#### # #??? #????????????????????????? | | ##??# #########??? ????????????????????????? | | ##?# ####??????????? ????????????????????????? | | ### #?????????????? ???????????????????????? | | #####?????????? ???????????????????????? | | ##????????? ???????????????????????? | | ###### #?????????? ??????????????????????? | +----------------------------------------------------+ Best States ------------- Heat Dissipation 25 Energy Generation 10 Energy Capacity 250 Matter Stores 300 Matter Capacity 300 Sight Range 16 Terrain Scan Density 10 Resistance: KI 35 Resistance: TH 35 Resistance: EX 35 Resistance: EM 35 Resistance: I 35 Resistance: S 35 Resistance: P 35 Core Shielding 20 Evasion (%) 40 Targeting Accuracy 5 Recoil Reduction 2 Offensive Hacking 20 Item Schematics ----------------- None Robot Schematics ------------------ None Fabricated ------------ Nothing Alien Tech Used ----------------- None Achievements -------------- None Challenges ------------ None Player 2 | -11 -10 -10 ---------- Run | Scr Mat Min Slots Evolved . | . . . Power . | . . . Propulsion . | . . . Utility . | . . . Weapon . | . . . Parts Attached 9 | . 8 1 Parts Lost 1 | . . 1 Damage Taken 141 | . . 141 Core 27 | . . 27 Player 2/Cogmind (%) 10 | . . 11 Absorbed by Shields . | . . . Damage Inflicted 178 | . . 178 Player 2/Cogmind (%) 38 | . . 43 Combat Hostiles Destroyed 3 | . . 3 Player 2/Cogmind (%) 37 | . . 50 Game ------ Seed GatlingDeuteriumWeb Manual? 0 Play Time 00:07:37 Cumulative 94.6 hours Start 2021.07.12 @ 18:05:53 End 2021.07.12 @ 18:36:23 Sessions 3 Manual Loads 0 Difficulty Explorer Special Mode AFD2020/Player2 Game No. 155 Rogue 89 Adventurer 0 Explorer 66 Win Type - Total 0 Types 0/0/0/0/0/0/0/0/0 Lore% 31 Gallery% 32 Achievement% 21 Wizard Run 0 Options --------- ASCII 0 Keyboard 0 Movement Mouse Keybinds 0 Fullscreen 1 Font 18/SmallcapsGlow Map View 76x50 Tactical HUD 0 Map Filters NONE Filters NONE Steam 1 RUN: 88333409-86bd-4f20-acf8-69fc80858087